bitfinex/quotes_BTCUSD_20241211
["timestamp","ask_amount","ask_price","bid_price","bid_amount"]
[1733895843387,0.10532524,97632.0,97615.0,0.433384]
[1733895843566,0.10532524,97632.0,97615.0,0.430384]
[1733895843995,0.10532524,97632.0,97615.0,0.433384]
[1733895844359,0.10732524,97632.0,97615.0,0.430384]
[1733895844619,0.10732524,97632.0,97615.0,0.432384]
[1733895844934,0.10732524,97632.0,97615.0,0.2275]
[1733895845540,8.58e-05,97630.0,97615.0,0.2275]
[1733895846051,0.09383977,97632.0,97615.0,0.2255]
[1733895846250,0.09383977,97632.0,97616.0,0.204884]
[1733895846251,0.09183977,97632.0,97616.0,0.204884]
[1733895846652,0.09183977,97632.0,97616.0,0.409768]
[1733895846853,0.09483977,97632.0,97616.0,0.409768]
[1733895847485,0.09183977,97632.0,97616.0,0.409768]
[1733895847686,0.09183977,97632.0,97616.0,0.412768]
[1733895847848,0.09483977,97632.0,97616.0,0.409768]
[1733895848230,0.09483977,97632.0,97616.0,0.204884]
[1733895848445,0.09483977,97632.0,97621.0,0.204873]
[1733895849202,0.003,97632.0,97621.0,0.204873]
[1733895849394,0.023,97636.0,97621.0,0.204873]
[1733895849568,0.003,97632.0,97621.0,0.204873]
[1733895850218,0.11918205,97636.0,97621.0,0.204873]
[1733895850391,0.01060121,97639.0,97626.0,0.204862]
[1733895850596,0.003,97632.0,97626.0,0.204862]
[1733895850997,0.023,97640.0,97623.0,0.15]
[1733895851200,0.11919746,97640.0,97623.0,0.15]
[1733895851459,0.004,97636.0,97623.0,0.15]
[1733895851781,0.004,97636.0,97624.0,0.204867]
[1733895851988,0.004,97636.0,97624.0,0.402467]
[1733895852442,0.004,97636.0,97624.0,0.607334]
[1733895852590,0.11919746,97640.0,97624.0,0.607334]
[1733895852996,0.12119746,97640.0,97624.0,0.607334]
[1733895853439,0.11919746,97640.0,97624.0,0.607334]
[1733895853837,0.12219746,97640.0,97624.0,0.607334]
[1733895854039,0.003,97640.0,97627.0,0.15]
[1733895854244,0.16062624,97641.0,97624.0,0.0476]
[1733895854245,0.16062624,97641.0,97629.0,0.15]
[1733895854559,0.01062624,97641.0,97632.0,0.20485]
[1733895854914,0.002,97640.0,97632.0,0.20485]
[1733895856125,0.023,97650.0,97632.0,0.20485]
[1733895856335,0.023,97648.0,97632.0,0.20485]
[1733895856532,0.002,97641.0,97632.0,0.20485]
[1733895856990,0.0961636,97647.0,97632.0,0.20485]
[1733895857197,0.0961636,97647.0,97632.0,0.5607]
[1733895857607,0.0961636,97647.0,97632.0,0.5597]
[1733895857869,0.0961636,97647.0,97632.0,0.5647]
[1733895858044,0.01387669,97646.0,97632.0,0.5647]
[1733895858264,0.01387669,97646.0,97632.0,0.35485]
[1733895858431,0.01387669,97646.0,97632.0,0.35785]
[1733895858630,0.16387669,97646.0,97632.0,0.35785]
[1733895858915,0.15,97646.0,97632.0,0.35785]
[1733895859200,0.003,97647.0,97639.0,0.204836]
[1733895859406,0.0107551,97651.0,97641.0,0.204831]
[1733895859811,0.003,97646.0,97641.0,0.204831]
[1733895860215,0.023,97658.0,97641.0,0.204831]
[1733895860417,0.001,97647.0,97641.0,0.204831]
[1733895860794,0.001,97647.0,97641.0,0.212831]
[1733895861155,0.173,97656.0,97641.0,0.204831]
[1733895861329,0.09611658,97655.0,97641.0,0.205831]
[1733895861531,0.24611658,97655.0,97641.0,0.210831]
[1733895861740,0.24611658,97655.0,97641.0,0.205831]
[1733895862142,0.15,97655.0,97643.0,0.15]
[1733895862346,0.01078276,97660.0,97646.0,0.20482]
[1733895862490,0.15,97659.0,97646.0,0.20482]
[1733895862694,0.09618461,97660.0,97646.0,0.20482]
[1733895863690,0.002,97659.0,97646.0,0.20482]
[1733895863830,0.152,97659.0,97646.0,0.20482]
[1733895864031,0.15,97659.0,97646.0,0.20482]
[1733895864237,0.15,97659.0,97646.0,0.409641]
[1733895864435,0.10960433,97660.0,97652.0,0.204808]
[1733895864674,0.01341972,97660.0,97653.0,0.0776]
[1733895865709,0.01141972,97660.0,97653.0,0.0776]
[1733895865916,0.002,97659.0,97653.0,0.0776]
[1733895866525,0.01141972,97660.0,97653.0,0.0776]
[1733895866928,0.01341972,97660.0,97653.0,0.0776]
[1733895867388,0.01341972,97660.0,97653.0,0.287404]
[1733895867885,0.01341972,97660.0,97653.0,0.282404]
[1733895868132,0.01341972,97660.0,97653.0,0.287404]
[1733895868574,0.01341972,97660.0,97658.0,0.204795]
[1733895868993,0.01341972,97660.0,97659.0,0.2765]
[1733895868994,0.0025493,97660.0,97659.0,0.2765]
[1733895869398,0.0005493,97660.0,97659.0,0.2765]
[1733895869900,0.0025493,97660.0,97659.0,0.2765]
[1733895870414,0.0005493,97660.0,97659.0,0.2765]
[1733895870617,0.0005493,97660.0,97659.0,0.2785]
[1733895870818,0.0006351,97660.0,97659.0,0.2875]
[1733895871442,0.0006351,97660.0,97659.0,0.54282524]
[1733895872062,0.0006351,97660.0,97659.0,0.54082524]
[1733895872267,0.0006351,97660.0,97659.0,0.54282524]
[1733895872705,0.0006351,97660.0,97659.0,0.55615352]
[1733895872908,8.57e-05,97690.0,97670.0,0.15]
[1733895873112,0.00025048,97690.0,97671.0,0.0776]
[1733895873325,0.00025048,97690.0,97681.0,0.204746]
[1733895874987,0.01385,97690.0,97681.0,0.204746]
[1733895875216,0.01585,97690.0,97681.0,0.204746]
[1733895875424,0.01559472,97690.0,97681.0,0.204746]
[1733895875633,0.01359472,97690.0,97684.0,0.15]
[1733895875847,0.01359472,97690.0,97684.0,0.35474]
[1733895876100,0.002,97690.0,97684.0,0.35474]
[1733895876334,0.002,97690.0,97688.0,0.0776]
[1733895876544,0.01375604,97700.0,97688.0,0.0776]
[1733895876753,0.01375604,97700.0,97688.0,0.07776478]
[1733895876754,0.003,97690.0,97688.0,0.07776478]
[1733895877195,0.003,97690.0,97689.0,0.354731]
[1733895877404,0.003,97690.0,97689.0,0.554231]
[1733895877621,0.003,97690.0,97689.0,0.631831]
[1733895878246,8.57e-05,97700.0,97699.0,0.20471]
[1733895878689,8.57e-05,97700.0,97698.0,0.15]
[1733895879353,8.57e-05,97700.0,97699.0,0.20471]
[1733895879570,0.01355376,97700.0,97699.0,0.35471]
[1733895879817,8.57e-05,97700.0,97699.0,0.35471]
[1733895880026,8.57e-05,97700.0,97698.0,0.15]
[1733895880262,8.57e-05,97700.0,97698.0,0.151]
[1733895880917,8.57e-05,97700.0,97699.0,0.009]
[1733895881339,8.57e-05,97700.0,97698.0,0.151]
[1733895881544,8.57e-05,97700.0,97698.0,0.159]
[1733895881958,8.57e-05,97700.0,97698.0,0.15]
[1733895882403,8.57e-05,97700.0,97699.0,0.001]
[1733895882731,8.57e-05,97700.0,97698.0,0.15]
[1733895882934,0.01340415,97700.0,97698.0,0.15]
[1733895883158,8.57e-05,97700.0,97698.0,0.15]
[1733895883363,8.57e-05,97700.0,97699.0,0.008]
[1733895883741,8.57e-05,97700.0,97698.0,0.15]
[1733895883949,8.57e-05,97700.0,97698.0,0.008]
[1733895884413,8.57e-05,97700.0,97695.0,0.15]
[1733895884746,8.57e-05,97700.0,97699.0,0.008]
[1733895884952,0.20471,97699.0,97689.0,0.15]
[1733895885429,0.35471,97699.0,97698.0,0.008]
[1733895886004,0.46003524,97699.0,97698.0,0.008]
[1733895886764,0.15,97698.0,97688.0,0.00016478]
[1733895886958,0.204725,97693.0,97688.0,0.00016478]
[1733895887161,0.40945,97693.0,97688.0,0.00016478]
[1733895887375,0.354727,97691.0,97688.0,0.00016478]
[1733895887582,0.354731,97689.0,97688.0,0.00016478]
[1733895887784,0.46005624,97689.0,97688.0,0.00016478]
[1733895888251,0.46005624,97689.0,97688.0,0.00516478]
[1733895888689,0.46005624,97689.0,97688.0,0.00016478]
[1733895889511,0.46305624,97689.0,97688.0,0.00016478]
[1733895890041,0.46305624,97689.0,97688.0,0.00416478]
[1733895890251,0.46305624,97689.0,97688.0,0.004]
[1733895890461,0.5870797,97689.0,97688.0,0.004]
[1733895890667,0.82110097,97689.0,97688.0,0.004]
[1733895894679,0.82120097,97689.0,97688.0,0.004]
[1733895898430,0.89730097,97689.0,97688.0,0.004]
[1733895899346,0.89430097,97689.0,97688.0,0.004]
[1733895899574,0.0001,97689.0,97688.0,0.004]
[1733895900210,0.0001,97689.0,97680.0,0.0001714]
[1733895900429,0.0002646,97689.0,97688.0,0.001]
[1733895900880,0.0042646,97689.0,97680.0,0.0001714]
[1733895901085,0.0042646,97689.0,97688.0,0.006]
[1733895901297,0.0002646,97689.0,97688.0,0.006]
[1733895901542,0.0002646,97689.0,97680.0,0.0001714]
[1733895901763,0.0012646,97689.0,97688.0,0.006]
[1733895902157,0.0002646,97689.0,97688.0,0.006]
[1733895902363,0.0012646,97689.0,97688.0,0.006]
[1733895903120,0.0012646,97689.0,97688.0,0.283833]
[1733895903329,0.0012646,97689.0,97688.0,0.433833]
[1733895903529,0.0002646,97689.0,97688.0,0.433833]
[1733895903947,0.0012646,97689.0,97688.0,0.439833]
[1733895904372,0.0012646,97689.0,97688.0,0.481833]
[1733895904575,0.0002646,97689.0,97688.0,0.489833]
[1733895906010,0.0002646,97689.0,97688.0,0.639833]
[1733895906842,0.0002646,97689.0,97688.0,0.73715824]
[1733895907252,0.0002646,97689.0,97688.0,0.74615824]
[1733895907458,8.57e-05,97690.0,97689.0,0.0826]
[1733895907662,8.57e-05,97690.0,97689.0,0.3826]
[1733895908083,8.57e-05,97690.0,97689.0,0.5794836]
[1733895908281,8.57e-05,97690.0,97689.0,0.57948376]
[1733895909734,8.57e-05,97690.0,97689.0,0.58848376]
[1733895910141,8.57e-05,97690.0,97689.0,0.60918346]
[1733895910380,8.57e-05,97690.0,97689.0,0.0916]
[1733895910623,8.57e-05,97690.0,97689.0,0.3916]
[1733895910795,8.57e-05,97690.0,97689.0,0.3956]
[1733895911215,8.57e-05,97690.0,97689.0,0.2456]
[1733895911332,8.57e-05,97690.0,97689.0,0.013]
[1733895912578,8.57e-05,97690.0,97689.0,0.304]
[1733895913003,8.57e-05,97690.0,97689.0,0.312]
[1733895913200,8.57e-05,97690.0,97689.0,0.304]
[1733895913406,8.57e-05,97690.0,97689.0,0.49192524]
[1733895913554,8.57e-05,97690.0,97689.0,0.49592524]
[1733895913773,8.57e-05,97690.0,97689.0,0.48792524]
[1733895913979,8.57e-05,97690.0,97689.0,0.57948376]
[1733895914200,8.57e-05,97690.0,97689.0,0.58848376]
[1733895914405,8.57e-05,97690.0,97689.0,0.57948376]
[1733895914614,8.57e-05,97690.0,97689.0,0.48792524]
[1733895914814,8.57e-05,97690.0,97689.0,0.57948376]
[1733895915018,8.57e-05,97690.0,97689.0,0.48792524]
[1733895915221,8.57e-05,97690.0,97689.0,0.49092524]
[1733895915847,8.57e-05,97690.0,97689.0,0.49992524]
[1733895916462,8.57e-05,97690.0,97689.0,0.49692524]
[1733895916891,8.57e-05,97690.0,97689.0,0.49992524]
[1733895917294,8.57e-05,97690.0,97689.0,0.49692524]
[1733895917725,8.57e-05,97690.0,97689.0,0.49992524]
[1733895925966,8.57e-05,97690.0,97689.0,0.312]
[1733895928245,8.57e-05,97690.0,97689.0,0.41732524]
[1733895929924,8.57e-05,97690.0,97689.0,0.41432524]
[1733895930173,8.57e-05,97690.0,97689.0,0.40532524]
[1733895930385,8.57e-05,97690.0,97689.0,0.25832524]
[1733895930583,8.57e-05,97690.0,97689.0,0.41732524]
[1733895930842,8.57e-05,97690.0,97689.0,0.40532524]
[1733895931804,8.57e-05,97690.0,97689.0,0.3]
[1733895932006,8.57e-05,97690.0,97689.0,0.303]
[1733895932436,8.57e-05,97690.0,97689.0,0.3]
[1733895932706,8.57e-05,97690.0,97689.0,0.309]
[1733895932907,8.57e-05,97690.0,97689.0,0.312]
[1733895933167,8.57e-05,97690.0,97689.0,0.303]
[1733895933390,8.57e-05,97690.0,97689.0,0.312]
[1733895934816,8.57e-05,97690.0,97689.0,0.303]
[1733895935246,8.57e-05,97690.0,97689.0,0.3]
[1733895935472,8.57e-05,97690.0,97689.0,0.301]
[1733895935930,8.57e-05,97690.0,97689.0,0.3]
[1733895936395,8.57e-05,97690.0,97689.0,0.002]
[1733895936811,8.57e-05,97690.0,97689.0,0.011]
[1733895937014,8.57e-05,97690.0,97689.0,0.002]
[1733895937438,8.57e-05,97690.0,97689.0,0.011]
[1733895937630,8.57e-05,97690.0,97689.0,0.002]
[1733895938043,8.57e-05,97690.0,97689.0,0.011]
[1733895938245,8.57e-05,97690.0,97689.0,0.009]
[1733895938377,0.0128693,97690.0,97689.0,0.009]
[1733895939413,0.0128693,97690.0,97689.0,0.01]
[1733895939634,0.0128693,97690.0,97689.0,0.001]
[1733895940028,0.0128693,97690.0,97689.0,0.01]
[1733895940376,0.0128693,97690.0,97689.0,0.001]
[1733895940819,0.0128693,97690.0,97689.0,0.01]
[1733895941488,0.0128693,97690.0,97689.0,0.001]
[1733895941692,0.0128693,97690.0,97682.0,0.15]
[1733895941896,0.0128693,97690.0,97689.0,0.009]
[1733895942101,0.0128693,97690.0,97689.0,0.01]
[1733895942514,0.2175983,97690.0,97689.0,0.009]
[1733895942933,0.2996983,97690.0,97689.0,0.009]
[1733895943137,0.2996983,97690.0,97682.0,0.0011646]
[1733895943354,0.5044283,97690.0,97682.0,0.0011646]
[1733895943982,0.5044283,97690.0,97689.0,0.009]
[1733895944408,0.2996983,97690.0,97682.0,0.0001646]
[1733895944645,0.2996983,97690.0,97689.0,0.001]
[1733895945068,0.2996983,97690.0,97682.0,0.0001646]
[1733895945279,0.2996983,97690.0,97689.0,0.009]
[1733895946558,0.2996983,97690.0,97682.0,0.0001646]
[1733895946768,0.2996983,97690.0,97689.0,0.009]
[1733895947202,0.2996983,97690.0,97682.0,0.0001646]
[1733895947393,0.2996983,97690.0,97689.0,0.009]
[1733895947603,0.2996983,97690.0,97689.0,0.01896]
[1733895947813,0.2996983,97690.0,97689.0,0.00996]
[1733895947941,0.2996983,97690.0,97689.0,0.01896]
[1733895948143,0.4496983,97690.0,97689.0,0.00996]
[1733895949189,0.55502354,97690.0,97689.0,0.00996]
[1733895949599,0.55502354,97690.0,97689.0,0.01896]
[1733895950023,0.55502354,97690.0,97689.0,0.00996]
[1733895950383,0.55502354,97690.0,97689.0,0.01796]
[1733895950586,0.55502354,97690.0,97689.0,0.00996]
[1733895951008,0.55602354,97690.0,97689.0,0.01896]
[1733895951209,0.55602354,97690.0,97689.0,0.00996]
[1733895951585,0.55502354,97690.0,97689.0,0.01796]
[1733895951943,0.55602354,97690.0,97689.0,0.01796]
[1733895952385,0.55502354,97690.0,97689.0,0.01796]
[1733895952795,0.55502354,97690.0,97689.0,0.00996]
[1733895953296,0.60132354,97690.0,97689.0,0.01896]
[1733895953686,0.60132354,97690.0,97689.0,0.00996]
[1733895954070,0.60132354,97690.0,97689.0,0.01796]
[1733895954273,0.60132354,97690.0,97689.0,0.00996]
[1733895954686,0.60232354,97690.0,97689.0,0.01596]
[1733895955027,0.60132354,97690.0,97689.0,0.01596]
[1733895955538,0.60432354,97690.0,97689.0,0.01596]
[1733895956531,0.60432354,97690.0,97689.0,0.00996]
[1733895956732,0.60432354,97690.0,97689.0,0.01296]
[1733895961537,1.54053689,97690.0,97689.0,0.00089645]
[1733895961735,0.453743,97683.0,97682.0,0.0001646]
[1733895961939,1.17208624,97683.0,97682.0,0.0001646]
[1733895962153,1.90351024,97683.0,97682.0,0.0001646]
[1733895962345,2.00862124,97683.0,97682.0,0.0001646]
[1733895962544,2.11372453,97683.0,97682.0,0.0001646]
[1733895962949,0.15,97672.0,97650.0,0.0001716]
[1733895963144,0.15,97670.0,97650.0,0.0001716]
[1733895963322,0.204793,97660.0,97650.0,0.0001716]
[1733895963554,0.204802,97655.0,97650.0,0.0001716]
[1733895964174,0.204794,97659.0,97650.0,0.0001716]
[1733895964378,0.204794,97659.0,97650.0,0.0041716]
[1733895964628,0.15,97668.0,97654.0,0.0459]
[1733895964874,0.15,97668.0,97660.0,0.15]
[1733895965832,0.01296734,97668.0,97660.0,0.15]
[1733895966081,0.15,97673.0,97660.0,0.15]
[1733895966594,0.15,97673.0,97661.0,0.20479]
[1733895967133,0.204757,97677.0,97661.0,0.20479]
[1733895967134,0.001,97668.0,97661.0,0.20479]
[1733895967593,0.15,97671.0,97661.0,0.20479]
[1733895967790,0.05720863,97670.0,97661.0,0.004]
[1733895968808,0.05720863,97670.0,97652.0,0.204808]
[1733895968809,0.10532524,97664.0,97635.0,0.09181682]
[1733895968978,0.15,97642.0,97632.0,0.09181682]
[1733895969185,0.023,97631.0,97616.0,0.09181682]
[1733895969375,0.15,97616.0,97613.0,0.19]
[1733895969580,0.204882,97617.0,97613.0,0.19]
[1733895969581,0.15,97614.0,97613.0,0.19]
[1733895969950,0.44628812,97614.0,97613.0,0.19]
[1733895970356,0.46928812,97614.0,97613.0,0.1905493]
[1733895970772,0.26071928,97614.0,97613.0,0.1905493]
[1733895971032,0.26071928,97614.0,97613.0,0.1945493]
[1733895971033,0.00539404,97614.0,97613.0,0.1945493]
[1733895971477,0.204884,97616.0,97613.0,0.1955493]
[1733895971657,0.006,97614.0,97613.0,0.1915493]
[1733895971879,0.01144632,97614.0,97613.0,0.1915493]
[1733895972663,0.00544632,97614.0,97613.0,0.1905493]
[1733895973044,0.00944632,97614.0,97613.0,0.1905493]
[1733895973254,0.01344632,97614.0,97613.0,0.1905493]
[1733895973429,0.00544632,97614.0,97613.0,0.1905493]
[1733895973639,0.354878,97619.0,97613.0,0.1905493]
[1733895973640,0.559756,97619.0,97613.0,0.1905493]
[1733895973860,0.004,97614.0,97613.0,0.1905493]
[1733895974063,0.00944937,97614.0,97613.0,0.1905493]
[1733895974471,0.00544937,97614.0,97613.0,0.1905493]
[1733895974903,0.66708224,97619.0,97613.0,0.1905493]
[1733895975054,0.00544608,97614.0,97613.0,0.1905493]
[1733895975261,0.66708224,97619.0,97613.0,0.1905493]
[1733895975462,0.00544726,97618.0,97613.0,0.1905493]
[1733895976041,0.204882,97617.0,97613.0,0.1915493]
[1733895976239,0.00544679,97616.0,97613.0,0.1915493]
[1733895976417,0.15,97614.0,97613.0,0.1905493]
[1733895976831,0.15544632,97614.0,97613.0,0.1905493]
[1733895978309,0.00544632,97614.0,97613.0,0.1905493]
[1733895978767,0.15,97618.0,97613.0,0.1905493]
[1733895978992,0.00544632,97614.0,97613.0,0.1905493]
[1733895979210,0.004,97614.0,97613.0,0.2681493]
[1733895979419,0.00944443,97614.0,97613.0,0.2681493]
[1733895979630,0.01301606,97620.0,97614.0,0.0487]
[1733895980072,0.204841,97637.0,97615.0,0.204886]
[1733895980073,0.005,97618.0,97615.0,0.204886]
[1733895980288,0.005,97618.0,97615.0,0.304886]
[1733895980500,0.0126247,97628.0,97615.0,0.304886]
[1733895980717,0.0126247,97628.0,97620.0,0.204874]
[1733895980929,0.20484,97637.0,97620.0,0.204874]
[1733895981153,0.20484,97637.0,97615.0,0.304886]
[1733895981154,0.204852,97632.0,97615.0,0.304886]
[1733895981366,0.041023,97630.0,97615.0,0.304886]
[1733895981787,0.00544625,97629.0,97615.0,0.304886]
[1733895982423,0.002,97628.0,97615.0,0.304886]
[1733895982861,0.041023,97630.0,97615.0,0.304886]
[1733895982862,0.00544578,97627.0,97615.0,0.304886]
[1733895983070,0.041023,97630.0,97615.0,0.304886]
[1733895983284,0.00544555,97626.0,97615.0,0.307886]
[1733895983482,0.002,97629.0,97615.0,0.304886]
[1733895983712,0.00544531,97625.0,97615.0,0.304886]
[1733895983916,0.041023,97630.0,97615.0,0.308886]
[1733895984121,0.00544507,97624.0,97615.0,0.304886]
[1733895984330,0.002,97627.0,97615.0,0.304886]
[1733895984540,0.002,97627.0,97621.0,0.204872]
[1733895984748,0.00544555,97626.0,97621.0,0.204872]
[1733895984976,0.002,97627.0,97621.0,0.204872]
[1733895985190,0.191023,97630.0,97615.0,0.304885]
[1733895985409,0.15,97630.0,97615.0,0.304885]
[1733895985618,0.00745325,97629.0,97615.0,0.304885]
[1733895985825,0.25333325,97629.0,97615.0,0.204885]
[1733895986028,0.15,97628.0,97614.0,0.0487]
[1733895986232,0.21031378,97627.0,97615.0,0.003]
[1733895986470,0.00545278,97627.0,97615.0,0.207884]
[1733895986722,0.00545278,97627.0,97615.0,0.307884]
[1733895987133,0.00545278,97627.0,97615.0,0.304884]
[1733895988420,0.00545231,97625.0,97615.0,0.307884]
[1733895988625,0.041023,97629.0,97620.0,0.204875]
[1733895988854,0.00545207,97624.0,97620.0,0.204875]
[1733895989068,0.043023,97629.0,97613.0,0.1905493]
[1733895989069,0.01425898,97629.0,97613.0,0.1905493]
[1733895989272,0.12721273,97628.0,97613.0,0.1905493]
[1733895989482,0.15,97619.0,97613.0,0.1905493]
[1733895989694,0.20488,97618.0,97613.0,0.1905493]
[1733895989903,0.00545066,97618.0,97613.0,0.1905493]
[1733895990368,0.00545066,97618.0,97615.0,0.004]
[1733895990592,0.00545066,97618.0,97613.0,0.1905493]
[1733895991004,0.00545066,97618.0,97613.0,0.1925493]
[1733895991210,0.00545066,97618.0,97613.0,0.1905493]
[1733895991717,0.00545066,97618.0,97615.0,0.002]
[1733895991925,0.00545066,97618.0,97613.0,0.1905493]
[1733895992131,0.00845066,97618.0,97614.0,0.204888]
[1733895992303,0.00845066,97618.0,97616.0,0.204884]
[1733895992509,0.0124536,97621.0,97615.0,0.0811]
[1733895992716,0.0124536,97621.0,97613.0,0.1925493]
[1733895992717,0.15,97619.0,97613.0,0.1925493]
[1733895992914,0.15,97627.0,97613.0,0.1925493]
[1733895992915,0.003,97618.0,97613.0,0.1925493]
[1733895993122,0.00844625,97618.0,97613.0,0.1925493]
[1733895993316,0.15,97622.0,97613.0,0.1925493]
[1733895993671,0.20487,97623.0,97613.0,0.1925493]
[1733895993672,0.15,97620.0,97613.0,0.1925493]
[1733895993871,0.00544695,97619.0,97613.0,0.1925493]
[1733895994101,0.00544695,97619.0,97613.0,0.1905493]
[1733895994482,0.00544695,97619.0,97615.0,0.002]
[1733895994719,0.00544695,97619.0,97613.0,0.1905493]
[1733895994930,0.15753641,97619.0,97613.0,0.1905493]
[1733895995115,0.15753641,97619.0,97613.0,0.1925493]
[1733895995116,0.15,97618.0,97613.0,0.1925493]
[1733895995374,0.15,97616.0,97613.0,0.1905493]
[1733895995581,0.15,97614.0,97613.0,0.1905493]
[1733895995791,0.25532524,97614.0,97613.0,0.1905493]
[1733895995990,0.26075297,97614.0,97613.0,0.1905493]
[1733895997366,0.26075297,97614.0,97613.0,0.2746493]
[1733895997367,0.01042773,97614.0,97613.0,0.2746493]
[1733895997743,0.005,97614.0,97613.0,0.2726493]
[1733895998217,0.007,97614.0,97613.0,0.2726493]
[1733895998418,0.005,97614.0,97613.0,0.2726493]
[1733895998798,0.005,97614.0,97613.0,0.2746493]
[1733895998997,0.005,97614.0,97613.0,0.2726493]
[1733895999197,0.01213837,97619.0,97613.0,0.2716493]
[1733895999555,0.005,97614.0,97613.0,0.2746493]
[1733895999958,0.15,97622.0,97613.0,0.2736493]
[1733896000104,0.10532524,97621.0,97613.0,0.2736493]
[1733896000315,0.003,97614.0,97613.0,0.2736493]
[1733896000695,0.00530519,97614.0,97613.0,0.2716493]
[1733896000899,0.15,97620.0,97613.0,0.2716493]
[1733896001099,0.00530519,97614.0,97613.0,0.2736493]
[1733896001301,0.15,97620.0,97613.0,0.2716493]
[1733896001523,0.00530519,97614.0,97613.0,0.2716493]
[1733896001712,0.15,97620.0,97613.0,0.2756493]
[1733896001927,0.00530519,97614.0,97613.0,0.2756493]
[1733896002130,0.15,97620.0,97613.0,0.2756493]
[1733896002383,0.00530519,97614.0,97613.0,0.2716493]
[1733896002555,0.002,97614.0,97613.0,0.2716493]
[1733896002779,0.00730519,97614.0,97613.0,0.2716493]
[1733896002983,0.002,97614.0,97613.0,0.3167493]
[1733896003228,0.00530519,97614.0,97613.0,0.4167493]
[1733896003445,0.01208452,97624.0,97623.0,0.1262]
[1733896003863,8.58e-05,97630.0,97623.0,0.1262]
[1733896004943,8.58e-05,97630.0,97623.0,0.1312]
[1733896005393,8.58e-05,97630.0,97623.0,0.1262]
[1733896005611,0.01209368,97630.0,97623.0,0.1292]
[1733896005827,0.00531481,97629.0,97623.0,0.1292]
[1733896006040,0.0020858,97630.0,97623.0,0.1262]
[1733896006276,8.58e-05,97630.0,97623.0,0.1262]
[1733896006703,0.0020858,97630.0,97623.0,0.1262]
[1733896008347,0.01414236,97630.0,97623.0,0.1262]
[1733896008590,0.01414236,97630.0,97623.0,0.1292]
[1733896008591,0.0020858,97630.0,97623.0,0.1292]
[1733896008767,0.0020858,97630.0,97623.0,0.1262]
[1733896008988,0.0020858,97630.0,97623.0,0.1292]
[1733896014113,0.0020858,97630.0,97623.0,0.003]
[1733896014514,0.354859,97628.0,97623.0,0.003]
[1733896014716,0.354863,97626.0,97623.0,0.003]
[1733896014974,0.15,97624.0,97623.0,0.003]
[1733896015290,0.26067584,97624.0,97623.0,0.003]
[1733896015486,0.1553506,97624.0,97623.0,0.003]
[1733896015689,0.1553506,97624.0,97620.0,0.0001716]
[1733896016073,0.0053506,97624.0,97623.0,0.004]
[1733896016272,0.002,97628.0,97620.0,0.0001716]
[1733896016437,0.00534567,97627.0,97620.0,0.0001716]
[1733896016654,8.58e-05,97630.0,97620.0,0.0001716]
[1733896016655,0.001,97624.0,97623.0,0.005]
[1733896016857,0.00634496,97624.0,97623.0,0.005]
[1733896017072,0.00534496,97624.0,97623.0,0.005]
[1733896017298,0.15,97628.0,97623.0,0.005]
[1733896017495,0.00533885,97624.0,97623.0,0.005]
[1733896017703,8.58e-05,97630.0,97623.0,0.005]
[1733896017943,0.00533885,97624.0,97623.0,0.005]
[1733896018120,8.58e-05,97630.0,97623.0,0.005]
[1733896018524,0.002,97628.0,97620.0,0.0001716]
[1733896018724,0.00804677,97628.0,97620.0,0.0001716]
[1733896018967,0.00604677,97628.0,97623.0,0.003]
[1733896019185,8.58e-05,97630.0,97623.0,0.003]
[1733896019386,0.00536012,97627.0,97623.0,0.003]
[1733896019616,0.15,97628.0,97620.0,0.0001716]
[1733896019827,0.00535988,97626.0,97620.0,0.0001716]
[1733896020036,0.00536012,97627.0,97620.0,0.0031716]
[1733896020246,0.15,97628.0,97620.0,0.0031716]
[1733896020247,0.00535965,97625.0,97620.0,0.0031716]
[1733896020475,0.00535988,97626.0,97620.0,0.0031716]
[1733896020680,0.00535941,97624.0,97620.0,0.0031716]
[1733896020895,0.00535918,97623.0,97620.0,0.0031716]
[1733896021103,0.002,97628.0,97620.0,0.0031716]
[1733896021305,0.002,97628.0,97620.0,0.0001716]
[1733896021636,0.00536012,97627.0,97623.0,0.004]
[1733896021860,0.15,97629.0,97620.0,0.0001716]
[1733896022061,0.001,97626.0,97620.0,0.0001716]
[1733896022262,0.00535965,97625.0,97620.0,0.0001716]
[1733896022865,0.003,97627.0,97620.0,0.0001716]
[1733896023064,0.00535988,97626.0,97620.0,0.0001716]
[1733896023965,0.15,97629.0,97620.0,0.0001716]
[1733896024164,0.00535965,97625.0,97620.0,0.0001716]
[1733896024401,0.15,97629.0,97620.0,0.0001716]
[1733896024597,0.00535941,97624.0,97620.0,0.0011716]
[1733896024799,0.15,97629.0,97620.0,0.0001716]
[1733896024800,0.00535918,97623.0,97620.0,0.0001716]
[1733896025000,0.003,97625.0,97620.0,0.0001716]
[1733896025225,0.15,97629.0,97620.0,0.0001716]
[1733896025449,0.00535941,97624.0,97620.0,0.0001716]
[1733896025602,0.154,97629.0,97620.0,0.0001716]
[1733896025803,0.00535918,97623.0,97620.0,0.0021716]
[1733896026153,0.00535894,97622.0,97620.0,0.0001716]
[1733896026558,0.003,97625.0,97620.0,0.0001716]
[1733896026991,0.00535941,97624.0,97620.0,0.0001716]
[1733896028255,0.001,97623.0,97620.0,0.0001716]
[1733896028457,0.00635918,97623.0,97620.0,0.0001716]
[1733896028674,0.15,97629.0,97620.0,0.0051716]
[1733896028800,0.00535894,97622.0,97620.0,0.0001716]
[1733896029003,0.001,97624.0,97620.0,0.0001716]
[1733896029207,0.001,97624.0,97620.0,0.0051716]
[1733896029411,0.00535462,97623.0,97620.0,0.0001716]
[1733896029609,0.00635462,97623.0,97620.0,0.0001716]
[1733896029840,0.00535439,97622.0,97620.0,0.0051716]
[1733896030015,0.001,97623.0,97620.0,0.0001716]
[1733896030445,0.00535439,97622.0,97620.0,0.0001716]
[1733896030683,0.27096068,97622.0,97620.0,0.0001716]
[1733896031105,0.26067939,97621.0,97620.0,0.0001716]
[1733896031503,0.26067939,97621.0,97620.0,0.0051716]
[1733896031732,0.46555239,97621.0,97620.0,0.0051716]